Workbook

Sheet 시청홈페이지(일반회계)
A1: 2024년 12월 | H1: 지방세외수입 징수보고서(일반회계)
A2: ○ 자치단체명 : 전라남도 여수시
O3: (단위: 원, %)
A4: 항목 | E4: ⓐ징수결정액 (본월분) | F4: ①징수결정액 (누계) | G4: ⓑ수납액 (본월분) | H4: ②수납액 (누계) | I4: 과오납액 (본월분) | J4: ③과오납액 (누계) | K4: 불납결손액 (본월분) | L4: ④불납결손액 (누계) | M4: 미수납액 (①-②-④) | N4: 당월징수율 (ⓑ/ⓐ) | O4: 누적징수율 (②/①)
A5: 합계 | E5: =E6+E32+E49 -> 4,299,481,523 | F5: =F6+F32+F49 -> 89,335,377,688 | G5: 8,410,850,905 | H5: 67,971,055,120 | I5: 10,068,640 | J5: 2,966,514,010 | K5: 9,335,500 | L5: 882,149,210 | M5: =F5-H5-L5 -> 20,482,173,358 | N5: =ROUND(G5/E5*100,2) -> 195.62 | O5: =ROUND(H5/F5*100,2) -> 76.09
A6: 경상적 세외수입 | E6: =SUM(E7:E31) -> 3,828,171,710 | F6: =SUM(F7:F31) -> 34,951,075,355 | G6: 3,838,574,930 | H6: 34,540,400,475 | I6: 6,310,630 | J6: 66,377,120 | K6: 0 | L6: 0 | M6: =F6-H6-L6 -> 410,674,880 | N6: =ROUND(G6/E6*100,2) -> 100.27 | O6: =ROUND(H6/F6*100,2) -> 98.83
B7: 재산임대수입 | C7: 국유재산임대료 | E7: ='[1]징수보고서(지난년도제외)'!D6 -> 20,940 | F7: ='[1]징수보고서(지난년도제외)'!E6 -> 246,325,940 | G7: ='[1]징수보고서(지난년도제외)'!F6 -> 166,040 | H7: ='[1]징수보고서(지난년도제외)'!G6 -> 246,061,920 | I7: ='[1]징수보고서(지난년도제외)'!H6 -> 0 | J7: ='[1]징수보고서(지난년도제외)'!I6 -> 0 | K7: ='[1]징수보고서(지난년도제외)'!J6 -> 0 | L7: ='[1]징수보고서(지난년도제외)'!K6 -> 0 | M7: =F7-H7-L7 -> 264,020 | N7: =ROUND(G7/E7*100,2) -> 792.93 | O7: 99.89
C8: 공유재산임대료 | E8: ='[1]징수보고서(지난년도제외)'!D7 -> 127,700,420 | F8: ='[1]징수보고서(지난년도제외)'!E7 -> 765,876,500 | G8: ='[1]징수보고서(지난년도제외)'!F7 -> 132,824,840 | H8: ='[1]징수보고서(지난년도제외)'!G7 -> 639,076,620 | I8: ='[1]징수보고서(지난년도제외)'!H7 -> 0 | J8: ='[1]징수보고서(지난년도제외)'!I7 -> 7,080 | K8: ='[1]징수보고서(지난년도제외)'!J7 -> 0 | L8: ='[1]징수보고서(지난년도제외)'!K7 -> 0 | M8: =F8-H8-L8 -> 126,799,880 | N8: 104.01 | O8: 83.44
B9: 사용료수입 | C9: 도로사용료 | E9: ='[1]징수보고서(지난년도제외)'!D9 -> 8,812,760 | F9: ='[1]징수보고서(지난년도제외)'!E9 -> 1,721,265,660 | G9: ='[1]징수보고서(지난년도제외)'!F9 -> 33,520,930 | H9: ='[1]징수보고서(지난년도제외)'!G9 -> 1,679,270,160 | I9: ='[1]징수보고서(지난년도제외)'!H9 -> 0 | J9: ='[1]징수보고서(지난년도제외)'!I9 -> 768,190 | K9: ='[1]징수보고서(지난년도제외)'!J9 -> 0 | L9: ='[1]징수보고서(지난년도제외)'!K9 -> 0 | M9: 41,995,500 | N9: 380.37 | O9: 97.56
C10: 하천사용료 | E10: ='[1]징수보고서(지난년도제외)'!D10 -> 11,870 | F10: ='[1]징수보고서(지난년도제외)'!E10 -> 174,859,000 | G10: ='[1]징수보고서(지난년도제외)'!F10 -> 37,260 | H10: ='[1]징수보고서(지난년도제외)'!G10 -> 174,846,620 | I10: ='[1]징수보고서(지난년도제외)'!H10 -> 0 | J10: ='[1]징수보고서(지난년도제외)'!I10 -> 0 | K10: ='[1]징수보고서(지난년도제외)'!J10 -> 0 | L10: ='[1]징수보고서(지난년도제외)'!K10 -> 0 | M10: 12,380 | N10: 313.9 | O10: 99.99
C11: 하수도사용료 | M11: 0
C12: 상수도사용료 | E12: ='[1]징수보고서(지난년도제외)'!D11 -> 130,940 | F12: ='[1]징수보고서(지난년도제외)'!E11 -> 1,411,470 | G12: ='[1]징수보고서(지난년도제외)'!F11 -> 228,000 | H12: ='[1]징수보고서(지난년도제외)'!G11 -> 1,411,470 | I12: ='[1]징수보고서(지난년도제외)'!H11 -> 0 | J12: ='[1]징수보고서(지난년도제외)'!I11 -> 0 | K12: ='[1]징수보고서(지난년도제외)'!J11 -> 0 | L12: ='[1]징수보고서(지난년도제외)'!K11 -> 0 | M12: 0 | N12: 174.13 | O12: 100
C13: 공유수면 사용료 | E13: ='[1]징수보고서(지난년도제외)'!D12 -> 669,550 | F13: ='[1]징수보고서(지난년도제외)'!E12 -> 567,879,080 | G13: ='[1]징수보고서(지난년도제외)'!F12 -> 970,510 | H13: ='[1]징수보고서(지난년도제외)'!G12 -> 518,209,880 | I13: ='[1]징수보고서(지난년도제외)'!H12 -> 0 | J13: ='[1]징수보고서(지난년도제외)'!I12 -> 0 | K13: ='[1]징수보고서(지난년도제외)'!J12 -> 0 | L13: ='[1]징수보고서(지난년도제외)'!K12 -> 0 | M13: 49,669,200 | N13: 144.95 | O13: 91.25
C14: 시장사용료 | E14: ='[1]징수보고서(지난년도제외)'!D13 -> 30,275,750 | F14: ='[1]징수보고서(지난년도제외)'!E13 -> 98,007,810 | G14: ='[1]징수보고서(지난년도제외)'!F13 -> 11,454,670 | H14: ='[1]징수보고서(지난년도제외)'!G13 -> 78,865,550 | I14: ='[1]징수보고서(지난년도제외)'!H13 -> 0 | J14: ='[1]징수보고서(지난년도제외)'!I13 -> 0 | K14: ='[1]징수보고서(지난년도제외)'!J13 -> 0 | L14: ='[1]징수보고서(지난년도제외)'!K13 -> 0 | M14: 19,142,260 | N14: 37.83 | O14: 80.47
C15: 입장료수입 | E15: ='[1]징수보고서(지난년도제외)'!D14 -> 3,958,000 | F15: ='[1]징수보고서(지난년도제외)'!E14 -> 6,231,000 | G15: ='[1]징수보고서(지난년도제외)'!F14 -> 1,782,000 | H15: ='[1]징수보고서(지난년도제외)'!G14 -> 4,055,000 | I15: ='[1]징수보고서(지난년도제외)'!H14 -> 0 | J15: ='[1]징수보고서(지난년도제외)'!I14 -> 0 | K15: ='[1]징수보고서(지난년도제외)'!J14 -> 0 | L15: ='[1]징수보고서(지난년도제외)'!K14 -> 0 | M15: 2,176,000 | N15: 45.02 | O15: 65.08
C16: 주차요금수입 | E16: ='[1]징수보고서(지난년도제외)'!D15 -> 28,615,150 | F16: ='[1]징수보고서(지난년도제외)'!E15 -> 298,058,050 | G16: ='[1]징수보고서(지난년도제외)'!F15 -> 28,615,150 | H16: ='[1]징수보고서(지난년도제외)'!G15 -> 298,058,050 | I16: ='[1]징수보고서(지난년도제외)'!H15 -> 0 | J16: ='[1]징수보고서(지난년도제외)'!I15 -> 0 | K16: ='[1]징수보고서(지난년도제외)'!J15 -> 0 | L16: ='[1]징수보고서(지난년도제외)'!K15 -> 0 | M16: 0 | N16: 100 | O16: 100
C17: 기타사용료 | E17: ='[1]징수보고서(지난년도제외)'!D16 -> 393,236,760 | F17: ='[1]징수보고서(지난년도제외)'!E16 -> 4,621,097,190 | G17: ='[1]징수보고서(지난년도제외)'!F16 -> 448,192,650 | H17: ='[1]징수보고서(지난년도제외)'!G16 -> 4,545,108,860 | I17: ='[1]징수보고서(지난년도제외)'!H16 -> 6,196,030 | J17: ='[1]징수보고서(지난년도제외)'!I16 -> 59,697,530 | K17: ='[1]징수보고서(지난년도제외)'!J16 -> 0 | L17: ='[1]징수보고서(지난년도제외)'!K16 -> 0 | M17: 75,988,330 | N17: 113.98 | O17: 98.36
B18: 수수료수입 | C18: 증지수입 | E18: ='[1]징수보고서(지난년도제외)'!D18 -> 67,109,660 | F18: ='[1]징수보고서(지난년도제외)'!E18 -> 744,427,930 | G18: ='[1]징수보고서(지난년도제외)'!F18 -> 67,820,840 | H18: ='[1]징수보고서(지난년도제외)'!G18 -> 743,467,330 | I18: ='[1]징수보고서(지난년도제외)'!H18 -> 6,300 | J18: ='[1]징수보고서(지난년도제외)'!I18 -> 82,310 | K18: ='[1]징수보고서(지난년도제외)'!J18 -> 0 | L18: ='[1]징수보고서(지난년도제외)'!K18 -> 0 | M18: 960,600 | N18: 101.06 | O18: 99.87
C19: 폐기물처리수수료 | E19: ='[1]징수보고서(지난년도제외)'!D19 -> 651,606,570 | F19: ='[1]징수보고서(지난년도제외)'!E19 -> 7,515,229,800 | G19: ='[1]징수보고서(지난년도제외)'!F19 -> 673,267,120 | H19: ='[1]징수보고서(지난년도제외)'!G19 -> 7,501,520,050 | I19: ='[1]징수보고서(지난년도제외)'!H19 -> 108,300 | J19: ='[1]징수보고서(지난년도제외)'!I19 -> 5,658,100 | K19: ='[1]징수보고서(지난년도제외)'!J19 -> 0 | L19: ='[1]징수보고서(지난년도제외)'!K19 -> 0 | M19: 13,709,750 | N19: 103.32 | O19: 99.82
C20: 재활용품수거판매수입 | E20: ='[1]징수보고서(지난년도제외)'!D20 -> 39,696,220 | F20: ='[1]징수보고서(지난년도제외)'!E20 -> 261,613,600 | G20: ='[1]징수보고서(지난년도제외)'!F20 -> 39,696,220 | H20: ='[1]징수보고서(지난년도제외)'!G20 -> 261,613,600 | I20: ='[1]징수보고서(지난년도제외)'!H20 -> 0 | J20: ='[1]징수보고서(지난년도제외)'!I20 -> 0 | K20: ='[1]징수보고서(지난년도제외)'!J20 -> 0 | L20: ='[1]징수보고서(지난년도제외)'!K20 -> 0 | M20: 0 | N20: 100 | O20: 100
C21: 보건의료수수료 | E21: ='[1]징수보고서(지난년도제외)'!D21 -> 53,713,300 | F21: ='[1]징수보고서(지난년도제외)'!E21 -> 679,022,770 | G21: ='[1]징수보고서(지난년도제외)'!F21 -> 53,684,740 | H21: ='[1]징수보고서(지난년도제외)'!G21 -> 678,292,470 | I21: ='[1]징수보고서(지난년도제외)'!H21 -> 0 | J21: ='[1]징수보고서(지난년도제외)'!I21 -> 16,900 | K21: ='[1]징수보고서(지난년도제외)'!J21 -> 0 | L21: ='[1]징수보고서(지난년도제외)'!K21 -> 0 | M21: 730,300 | N21: 99.95 | O21: 99.89
C22: 기타수수료 | E22: ='[1]징수보고서(지난년도제외)'!D22 -> 48,937,100 | F22: ='[1]징수보고서(지난년도제외)'!E22 -> 584,214,230 | G22: ='[1]징수보고서(지난년도제외)'!F22 -> 47,377,970 | H22: ='[1]징수보고서(지난년도제외)'!G22 -> 582,196,810 | I22: ='[1]징수보고서(지난년도제외)'!H22 -> 0 | J22: ='[1]징수보고서(지난년도제외)'!I22 -> 67,700 | K22: ='[1]징수보고서(지난년도제외)'!J22 -> 0 | L22: ='[1]징수보고서(지난년도제외)'!K22 -> 0 | M22: 2,017,420 | N22: 96.81 | O22: 99.65
B23: 사업수입 | C23: 사업장생산수입 | E23: ='[1]징수보고서(지난년도제외)'!D24 -> 145,690,900 | F23: ='[1]징수보고서(지난년도제외)'!E24 -> 892,634,220 | G23: ='[1]징수보고서(지난년도제외)'!F24 -> 69,220,400 | H23: ='[1]징수보고서(지난년도제외)'!G24 -> 816,153,720 | I23: ='[1]징수보고서(지난년도제외)'!H24 -> 0 | J23: ='[1]징수보고서(지난년도제외)'!I24 -> 0 | K23: ='[1]징수보고서(지난년도제외)'!J24 -> 0 | L23: ='[1]징수보고서(지난년도제외)'!K24 -> 0 | M23: 76,480,500 | N23: 47.51 | O23: 91.43
C24: 청산금수입 | M24: 0
C25: 매각사업수입 | M25: 0
C26: 배당금수입 | M26: 0
C27: 기타사업수입 | E27: ='[1]징수보고서(지난년도제외)'!D25 -> 1,512,500 | F27: ='[1]징수보고서(지난년도제외)'!E25 -> 9,515,000 | G27: ='[1]징수보고서(지난년도제외)'!F25 -> 1,435,500 | H27: ='[1]징수보고서(지난년도제외)'!G25 -> 9,416,000 | I27: ='[1]징수보고서(지난년도제외)'!H25 -> 0 | J27: ='[1]징수보고서(지난년도제외)'!I25 -> 0 | K27: ='[1]징수보고서(지난년도제외)'!J25 -> 0 | L27: ='[1]징수보고서(지난년도제외)'!K25 -> 0 | M27: 99,000 | N27: 94.91 | O27: 98.96
B28: 징수교부금수입 | C28: 징수교부금수입 | E28: ='[1]징수보고서(지난년도제외)'!D27 -> 449,923,120 | F28: ='[1]징수보고서(지난년도제외)'!E27 -> 2,898,099,350 | G28: ='[1]징수보고서(지난년도제외)'!F27 -> 449,923,120 | H28: ='[1]징수보고서(지난년도제외)'!G27 -> 2,898,099,350 | I28: ='[1]징수보고서(지난년도제외)'!H27 -> 0 | J28: ='[1]징수보고서(지난년도제외)'!I27 -> 0 | K28: ='[1]징수보고서(지난년도제외)'!J27 -> 0 | L28: ='[1]징수보고서(지난년도제외)'!K27 -> 0 | M28: 0 | N28: 100 | O28: 100
B29: 이자수입 | C29: 공공예금이자수입 | E29: ='[1]징수보고서(지난년도제외)'!D29 -> 1,753,392,450 | F29: ='[1]징수보고서(지난년도제외)'!E29 -> 12,430,905,060 | G29: ='[1]징수보고서(지난년도제외)'!F29 -> 1,753,392,450 | H29: ='[1]징수보고서(지난년도제외)'!G29 -> 12,430,905,060 | I29: ='[1]징수보고서(지난년도제외)'!H29 -> 0 | J29: ='[1]징수보고서(지난년도제외)'!I29 -> 0 | K29: ='[1]징수보고서(지난년도제외)'!J29 -> 0 | L29: ='[1]징수보고서(지난년도제외)'!K29 -> 0 | M29: 0 | N29: 100 | O29: 100
C30: 융자금회수이자수입 | M30: 0
C31: 기타이자수입 | E31: ='[1]징수보고서(지난년도제외)'!D30 -> 23,157,750 | F31: ='[1]징수보고서(지난년도제외)'!E30 -> 434,401,695 | G31: ='[1]징수보고서(지난년도제외)'!F30 -> 24,964,520 | H31: ='[1]징수보고서(지난년도제외)'!G30 -> 433,771,955 | I31: ='[1]징수보고서(지난년도제외)'!H30 -> 0 | J31: ='[1]징수보고서(지난년도제외)'!I30 -> 79,310 | K31: ='[1]징수보고서(지난년도제외)'!J30 -> 0 | L31: ='[1]징수보고서(지난년도제외)'!K30 -> 0 | M31: 629,740 | N31: 107.8 | O31: 99.86
A32: 임시적세외수입 | E32: =SUM(E33:E48) -> (559,526,250) | F32: =SUM(F33:F48) -> 47,490,004,480 | G32: 4,128,070,845 | H32: 29,404,846,325 | I32: 3,209,760 | J32: 131,224,170 | K32: 9,335,500 | L32: 881,206,580 | M32: 17,203,951,575 | N32: -737.78 | O32: 61.92
B33: 재산매각수입 | C33: 국유재산매각귀속수입금 | M33: =F33-H33-L33 -> 0
C34: 시도유재산매각귀속수입금 | E34: ='[1]징수보고서(지난년도제외)'!D33 -> 0 | F34: ='[1]징수보고서(지난년도제외)'!E33 -> 28,616,030 | G34: ='[1]징수보고서(지난년도제외)'!F33 -> 0 | H34: ='[1]징수보고서(지난년도제외)'!G33 -> 28,616,030 | I34: ='[1]징수보고서(지난년도제외)'!H33 -> 0 | J34: ='[1]징수보고서(지난년도제외)'!I33 -> 0 | K34: ='[1]징수보고서(지난년도제외)'!J33 -> 0 | L34: ='[1]징수보고서(지난년도제외)'!K33 -> 0 | M34: =F34-H34-L34 -> 0 | O34: 100
C35: 공유재산매각수입금 | E35: ='[1]징수보고서(지난년도제외)'!D34 -> 0 | F35: ='[1]징수보고서(지난년도제외)'!E34 -> 972,131,850 | G35: ='[1]징수보고서(지난년도제외)'!F34 -> 45,270,000 | H35: ='[1]징수보고서(지난년도제외)'!G34 -> 878,590,850 | I35: ='[1]징수보고서(지난년도제외)'!H34 -> 0 | J35: ='[1]징수보고서(지난년도제외)'!I34 -> 0 | K35: ='[1]징수보고서(지난년도제외)'!J34 -> 0 | L35: ='[1]징수보고서(지난년도제외)'!K34 -> 0 | M35: 93,541,000 | O35: 90.38
C36: 불용품 매각대금 | E36: ='[1]징수보고서(지난년도제외)'!D35 -> 12,685,400 | F36: ='[1]징수보고서(지난년도제외)'!E35 -> 240,786,900 | G36: ='[1]징수보고서(지난년도제외)'!F35 -> 26,271,600 | H36: ='[1]징수보고서(지난년도제외)'!G35 -> 237,749,700 | I36: ='[1]징수보고서(지난년도제외)'!H35 -> 0 | J36: ='[1]징수보고서(지난년도제외)'!I35 -> 0 | K36: ='[1]징수보고서(지난년도제외)'!J35 -> 0 | L36: ='[1]징수보고서(지난년도제외)'!K35 -> 0 | M36: 3,037,200 | N36: 207.1 | O36: 98.74
B37: 자치단체간 부담금 | C37: 자치단체간 부담금 | M37: 0
B38: 보조금 반환수입 | C38: 시도비보조금등반환수입 | M38: 0
C39: 자체보조금등반환수입 | E39: ='[1]징수보고서(지난년도제외)'!D37 -> 142,710,390 | F39: ='[1]징수보고서(지난년도제외)'!E37 -> 3,217,794,610 | G39: ='[1]징수보고서(지난년도제외)'!F37 -> 230,090,960 | H39: ='[1]징수보고서(지난년도제외)'!G37 -> 3,211,740,530 | I39: ='[1]징수보고서(지난년도제외)'!H37 -> 0 | J39: ='[1]징수보고서(지난년도제외)'!I37 -> 318,730 | K39: ='[1]징수보고서(지난년도제외)'!J37 -> 0 | L39: ='[1]징수보고서(지난년도제외)'!K37 -> 0 | M39: 6,054,080 | N39: 161.23 | O39: 99.81
C40: 위탁비반환수입 | E40: ='[1]징수보고서(지난년도제외)'!D38 -> 758,190 | F40: ='[1]징수보고서(지난년도제외)'!E38 -> 63,621,380 | G40: ='[1]징수보고서(지난년도제외)'!F38 -> 758,190 | H40: ='[1]징수보고서(지난년도제외)'!G38 -> 63,621,380 | I40: ='[1]징수보고서(지난년도제외)'!H38 -> 0 | J40: ='[1]징수보고서(지난년도제외)'!I38 -> 0 | K40: ='[1]징수보고서(지난년도제외)'!J38 -> 0 | L40: ='[1]징수보고서(지난년도제외)'!K38 -> 0 | M40: 0 | N40: 100 | O40: 100
B41: 기타수입 | C41: 체납처분수입 | M41: 0
C42: 보상금수납금 | M42: 0
C43: 기부금수입 | E43: ='[1]징수보고서(지난년도제외)'!D40 -> 20,000,000 | F43: ='[1]징수보고서(지난년도제외)'!E40 -> 60,374,820 | G43: ='[1]징수보고서(지난년도제외)'!F40 -> 20,000,000 | H43: ='[1]징수보고서(지난년도제외)'!G40 -> 60,374,820 | I43: ='[1]징수보고서(지난년도제외)'!H40 -> 0 | J43: ='[1]징수보고서(지난년도제외)'!I40 -> 0 | K43: ='[1]징수보고서(지난년도제외)'!J40 -> 0 | L43: ='[1]징수보고서(지난년도제외)'!K40 -> 0 | M43: 0 | N43: 100 | O43: 100
C44: 지적재조사조정금 | E44: ='[1]징수보고서(지난년도제외)'!D41 -> (1,001,658,960) | F44: ='[1]징수보고서(지난년도제외)'!E41 -> 15,294,174,760 | G44: ='[1]징수보고서(지난년도제외)'!F41 -> 3,212,176,885 | H44: ='[1]징수보고서(지난년도제외)'!G41 -> 8,411,535,815 | I44: ='[1]징수보고서(지난년도제외)'!H41 -> 2,254,900 | J44: ='[1]징수보고서(지난년도제외)'!I41 -> 11,212,600 | K44: ='[1]징수보고서(지난년도제외)'!J41 -> 0 | L44: ='[1]징수보고서(지난년도제외)'!K41 -> 0 | M44: 6,882,638,945 | N44: -320.69 | O44: 55
C45: 지방교부세감소분 보전수입 | E45: ='[1]징수보고서(지난년도제외)'!D42 -> 0 | F45: ='[1]징수보고서(지난년도제외)'!E42 -> 8,004,219,970 | G45: ='[1]징수보고서(지난년도제외)'!F42 -> 0 | H45: ='[1]징수보고서(지난년도제외)'!G42 -> 8,004,219,970 | I45: ='[1]징수보고서(지난년도제외)'!H42 -> 0 | J45: ='[1]징수보고서(지난년도제외)'!I42 -> 0 | K45: ='[1]징수보고서(지난년도제외)'!J42 -> 0 | L45: ='[1]징수보고서(지난년도제외)'!K42 -> 0 | M45: 0 | O45: 100
C46: 위약금 | E46: ='[1]징수보고서(지난년도제외)'!D43 -> 4,011,010 | F46: ='[1]징수보고서(지난년도제외)'!E43 -> 30,396,420 | G46: ='[1]징수보고서(지난년도제외)'!F43 -> 4,011,010 | H46: ='[1]징수보고서(지난년도제외)'!G43 -> 30,396,420 | I46: ='[1]징수보고서(지난년도제외)'!H43 -> 0 | J46: ='[1]징수보고서(지난년도제외)'!I43 -> 0 | K46: ='[1]징수보고서(지난년도제외)'!J43 -> 0 | L46: ='[1]징수보고서(지난년도제외)'!K43 -> 0 | M46: 0 | N46: 100 | O46: 100
C47: 그외수입 | E47: ='[1]징수보고서(지난년도제외)'!D44 -> 244,000,150 | F47: ='[1]징수보고서(지난년도제외)'!E44 -> 4,585,385,624 | G47: ='[1]징수보고서(지난년도제외)'!F44 -> 346,482,670 | H47: ='[1]징수보고서(지난년도제외)'!G44 -> 4,544,701,744 | I47: ='[1]징수보고서(지난년도제외)'!H44 -> 10,000 | J47: ='[1]징수보고서(지난년도제외)'!I44 -> 19,880 | K47: ='[1]징수보고서(지난년도제외)'!J44 -> 0 | L47: ='[1]징수보고서(지난년도제외)'!K44 -> 0 | M47: 40,683,880 | N47: 142 | O47: 99.11
B48: 지난연도 수입 | C48: 지난연도 수입 | E48: =[1]지난년도과목!E3 -> 17,967,570 | F48: =[1]지난년도과목!F3 -> 14,992,502,116 | G48: =[1]지난년도과목!G3 -> 243,009,530 | H48: =[1]지난년도과목!H3 -> 3,933,299,066 | I48: =[1]지난년도과목!I3 -> 944,860 | J48: =[1]지난년도과목!J3 -> 119,672,960 | K48: =[1]지난년도과목!K3 -> 9,335,500 | L48: =[1]지난년도과목!L3 -> 881,206,580 | M48: 10,177,996,470 | N48: 1352.49 | O48: 26.24
A49: 지방행정제재 부과금 | E49: =SUM(E50:E57) -> 1,030,836,063 | F49: =SUM(F50:F57) -> 6,894,297,853 | G49: 444,205,130 | H49: 4,025,808,320 | I49: 548,250 | J49: 2,768,912,720 | K49: 0 | L49: 942,630 | M49: 2,867,546,903 | N49: 43.09 | O49: 58.39
B50: 과징금 | C50: 과징금 | E50: ='[1]징수보고서(지난년도제외)'!D46 -> 0 | F50: ='[1]징수보고서(지난년도제외)'!E46 -> 144,088,610 | G50: ='[1]징수보고서(지난년도제외)'!F46 -> 1,300,000 | H50: ='[1]징수보고서(지난년도제외)'!G46 -> 113,670,000 | I50: ='[1]징수보고서(지난년도제외)'!H46 -> 0 | J50: ='[1]징수보고서(지난년도제외)'!I46 -> 0 | K50: ='[1]징수보고서(지난년도제외)'!J46 -> 0 | L50: ='[1]징수보고서(지난년도제외)'!K46 -> 0 | M50: =F50-H50-L50 -> 30,418,610 | O50: 78.89
B51: 이행강제금 | C51: 이행강제금 | E51: ='[1]징수보고서(지난년도제외)'!D48 -> 768,457,900 | F51: ='[1]징수보고서(지난년도제외)'!E48 -> 1,810,010,590 | G51: ='[1]징수보고서(지난년도제외)'!F48 -> 224,029,120 | H51: ='[1]징수보고서(지난년도제외)'!G48 -> 661,858,400 | I51: ='[1]징수보고서(지난년도제외)'!H48 -> 0 | J51: ='[1]징수보고서(지난년도제외)'!I48 -> 0 | K51: ='[1]징수보고서(지난년도제외)'!J48 -> 0 | L51: ='[1]징수보고서(지난년도제외)'!K48 -> 0 | M51: =F51-H51-L51 -> 1,148,152,190 | N51: 29.15 | O51: 36.57
B52: 변상금 | C52: 변상금 | E52: ='[1]징수보고서(지난년도제외)'!D50 -> (223,414,307) | F52: ='[1]징수보고서(지난년도제외)'!E50 -> 146,469,063 | G52: ='[1]징수보고서(지난년도제외)'!F50 -> 12,055,730 | H52: ='[1]징수보고서(지난년도제외)'!G50 -> 119,920,030 | I52: ='[1]징수보고서(지난년도제외)'!H50 -> 0 | J52: ='[1]징수보고서(지난년도제외)'!I50 -> 0 | K52: ='[1]징수보고서(지난년도제외)'!J50 -> 0 | L52: ='[1]징수보고서(지난년도제외)'!K50 -> 0 | M52: 26,549,033 | N52: -5.4 | O52: 81.87
B53: 과태료 | C53: 차량관련과태료 | E53: ='[1]징수보고서(지난년도제외)'!D53 -> 130,082,710 | F53: ='[1]징수보고서(지난년도제외)'!E53 -> 1,249,701,060 | G53: ='[1]징수보고서(지난년도제외)'!F53 -> 53,056,470 | H53: ='[1]징수보고서(지난년도제외)'!G53 -> 497,671,300 | I53: ='[1]징수보고서(지난년도제외)'!H53 -> 0 | J53: ='[1]징수보고서(지난년도제외)'!I53 -> 0 | K53: ='[1]징수보고서(지난년도제외)'!J53 -> 0 | L53: ='[1]징수보고서(지난년도제외)'!K53 -> 942,630 | M53: 751,087,130 | N53: 40.79 | O53: 39.82
C54: 기타과태료 | E54: ='[1]징수보고서(지난년도제외)'!D54 -> 117,691,780 | F54: ='[1]징수보고서(지난년도제외)'!E54 -> 1,296,196,120 | G54: ='[1]징수보고서(지난년도제외)'!F54 -> 86,953,510 | H54: ='[1]징수보고서(지난년도제외)'!G54 -> 854,212,560 | I54: ='[1]징수보고서(지난년도제외)'!H54 -> 104,180 | J54: ='[1]징수보고서(지난년도제외)'!I54 -> 10,833,050 | K54: ='[1]징수보고서(지난년도제외)'!J54 -> 0 | L54: ='[1]징수보고서(지난년도제외)'!K54 -> 0 | M54: 441,983,560 | N54: 73.88 | O54: 65.9
B55: 환수금 | C55: 부정이익환수금 | E55: ='[1]징수보고서(지난년도제외)'!D56 -> 1,100,370 | F55: ='[1]징수보고서(지난년도제외)'!E56 -> 50,606,960 | G55: ='[1]징수보고서(지난년도제외)'!F56 -> 986,280 | H55: ='[1]징수보고서(지난년도제외)'!G56 -> 47,535,220 | I55: ='[1]징수보고서(지난년도제외)'!H56 -> 0 | J55: ='[1]징수보고서(지난년도제외)'!I56 -> 0 | K55: ='[1]징수보고서(지난년도제외)'!J56 -> 0 | L55: ='[1]징수보고서(지난년도제외)'!K56 -> 0 | M55: 3,071,740 | N55: 89.63 | O55: 93.93
B56: 부담금 | C56: 부담금 | E56: ='[1]징수보고서(지난년도제외)'!D58 -> 236,417,610 | F56: ='[1]징수보고서(지난년도제외)'!E58 -> 2,148,845,450 | G56: ='[1]징수보고서(지난년도제외)'!F58 -> 62,424,020 | H56: ='[1]징수보고서(지난년도제외)'!G58 -> 1,682,560,810 | I56: ='[1]징수보고서(지난년도제외)'!H58 -> 444,070 | J56: ='[1]징수보고서(지난년도제외)'!I58 -> 2,758,079,670 | K56: ='[1]징수보고서(지난년도제외)'!J58 -> 0 | L56: ='[1]징수보고서(지난년도제외)'!K58 -> 0 | M56: 466,284,640 | N56: 26.4 | O56: 78.3
B57: 범칙금 | C57: 범칙금 | E57: ='[1]징수보고서(지난년도제외)'!D60 -> 500,000 | F57: ='[1]징수보고서(지난년도제외)'!E60 -> 48,380,000 | G57: ='[1]징수보고서(지난년도제외)'!F60 -> 3,400,000 | H57: ='[1]징수보고서(지난년도제외)'!G60 -> 48,380,000 | I57: ='[1]징수보고서(지난년도제외)'!H60 -> 0 | J57: ='[1]징수보고서(지난년도제외)'!I60 -> 0 | K57: ='[1]징수보고서(지난년도제외)'!J60 -> 0 | L57: ='[1]징수보고서(지난년도제외)'!K60 -> 0 | M57: 0 | N57: 680 | O57: 100
A60: ※ 작성요령
A61: 1. 작성대상 : 일반회계
A62: 2. 작성기준 : 매월 20일까지 전월 자료 세외수입통계정보시스템 징수월보 등록
A63: 3. 제출방법 : 세외수입통계정보시스템
A64: 4. 해당 지자체에서 부과, 징수되는 세외수입은 모두 포함하고, 자료 누락이나 잘못된 값이 들어가지 않도록 자료 작성에 각별히 신경(향후 연감 작업시 검증자료로 활용예정)
A65: 5. 징수결정액은 납부자가 납부해야할 최종 금액으로 부과취소 등 감액분은 제외
A66: 6. 수납액은 납부자가 실제 납부한 금액에서 과오납 환급금을 제외한 금액
A67: 7. 불납결손액은 징수 불가능 금액으로 결손처분한 금액
